Workbook

Sheet стандарт
D4: КАЛЬКУЛЯТОР
D5: Обрані Споживачем умови кредитування
B7: Кредит видається на: | D7: АВТО вживані
B8: Дата надання кредиту | D8: =TODAY() -> 2023-09-05
B9: Сума кредиту,грн.: | D9: 1500000 | E9: гривень
B10: Забезпечення | D10: 3200000 | E10: гривень | M10: Заповнюється Клієнтом
B11: Строк користування кредитом (в місяцях): | D11: 48
B12: Погашення основної суми кредиту: щомісяця
B13: Погашення процентів: щомісяця
A14: =ROUND(D9/D11,2) -> 31250 | B14: Номінальна процентна ставка: | D14: =VLOOKUP(D15,'Номінальна %ставка'!$A$2:$F$6,MATCH(стандарт!$D$11,'Номінальна %ставка'!$A$2:$F$2,0),0) -> 0.1599 | E14: річних | F14: =D14 -> 0.1599 | I14: =F14/12 -> 0.013325
B15: Авансовий внесок | D15: 0.4 | F15: =D10*D15 -> 1280000 | G15: гривень
B16: Супутні витрати позичальника:
A17: =DATE(YEAR(B40),MONTH(B40)+1,DAY(B40)) -> 2023-10-05 | B17: комісія за надання кредиту (разова): | D17: 0.025 | E17: від основної суми кредиту/ Всього: | G17: =D17*D9 -> 37500 | I17: гривень
B18: обслуговування кредитної заборгованості: | D18: 0 | E18: на місяць від основної суми кредиту: | G18: =D18*D9 -> 0 | I18: гривень
B19: розрахунково-касове обслуговування: | G19: 0 | I19: гривень
B20: страхування НВ: | D20: 0 | E20: на рік від основної суми кредиту: | G20: =D20*D9 -> 0 | I20: гривень
B21: страхування КАСКО: | D21: 0.0593 | E21: на рік від залогової вартості: | G21: =D10*D21 -> 189760 | I21: гривень
B22: послуги нотаріуса: | G22: 0 | I22: гривень
B23: надання витягів/внесення запису(ів) до Державного реєстру обтяжень рухомого майна | E23: фіксована сума (одноразово) | G23: 0 | I23: гривень
B24: інші послуги третіх осіб | E24: фіксована сума (одноразово) | G24: 0 | I24: гривень
B25: інші послуги банку | G25: 0 | I25: гривень
B26: комісійний збір кредитного посередника | D26: 0 | E26: від суми кредиту (одноразово) | G26: =D9*D26 -> 0 | I26: гривень
B27: оцінка майна: | E27: фіксована сума (одноразово) | G27: 0 | I27: гривень
B28: інша плата за послуги кредитного посередника | G28: 0 | I28: гривень
B29: ВСЬОГО | G29: =SUM(G17:G28) -> 227260 | I29: гривень
F31: =PMT(F14/12,E11,-D9) ->  | G31: =IPMT(F14/12,1,24,-D9) -> 19987.5
D32: Розрахунок загальної вартості споживчого кредиту та реальної процентної ставки
B34: Дата видачі кредиту/дата платежу | C34: Чиста сума кредиту/сума платежу за розрахунковий період, грн. | D34: Види платежів за кредитом | U34: Орієнтовна реальна річна процентна ставка, % | V34: пепеплата
D35: сума кредиту за договором | E35: проценти за користування кредитом | F35: платежі за супровідні послуги
F36: банку | K36: третіх осіб | R36: кредитного посередника(за наявності)
F37: обслуговування кредитної заборгованості | G37: РКО | H37: розрахунково-касове обслуговування | I37: комісія за надання кредиту | J37: інші послуги банку | K37: страхування НВ | L37: послугами нотаріусів | M37: страхування КАСКО | N37: оцінка майна | O37: надання витягів/внесення запису(ів) до Державного реєстру обтяжень рухомого майна | P37: інші послуги третіх осіб | R37: комісійний збір кредитного посередника | T37: інша плата за послуги кредитного посередника
B38: 1 | C38: 2 | D38: 3 | E38: 4 | F38: 5 | G38: 6 | I38: 7 | J38: 8 | K38: 9 | L38: 10 | M38: 11 | N38: 12 | O38: 13 | P38: 14 | R38: 15 | T38: 16 | U38: 17 | V38: 18
W39: остаток
A40: e | B40: =D8 -> 2023-09-05 | C40: =-(D40-SUM(F40:T40)) -> -1272740 | D40: =D9 -> 1500000 | E40: х | F40: =$G$18 -> 0 | G40: =G19 -> 0 | I40: =G17 -> 37500 | J40: =G25 -> 0 | K40: =IF(X40="страховка",$G$20,0) -> 0 | L40: =G22 -> 0 | M40: =IF(X40="страховка",$G$21,0) -> 189760 | N40: =G27 -> 0 | O40: =G23 -> 0 | P40: =G24 -> 0 | R40: =G26 -> 0 | T40: =G28 -> 0 | U40: х | V40: х | W40: 1500000 | X40: =IF(MONTH($B$40)-MONTH(B40)=0,"страховка","нет") -> страховка
A41: e | B41: =DATE(YEAR(B40),MONTH(B40)+1,DAY(B40)) -> 2023-10-05 | C41: =SUM(D41:V41) -> 51237.5 | D41: =$A$14 -> 31250 | E41: =W40*$D$14/360*Y41 -> 19987.5 | F41: 0 | K41: =IF(X41="страховка",$G$20,0) -> 0 | M41: =IF(X41="страховка",$G$21,0) -> 0 | W41: =W40-D41 -> 1468750 | X41: =IF(MONTH($B$40)-MONTH(B41)=0,"страховка","нет") -> нет | Y41: =B41-B40 -> 30
A42: e | B42: =DATE(YEAR(B41),MONTH(B41)+1,DAY(B41)) -> 2023-11-05 | C42: =SUM(D42:V42) -> 51473.46354 | D42: =$A$14 -> 31250 | E42: =W41*$D$14/360*Y42 -> 20223.46354 | F42: 0 | K42: 0 | M42: 0 | W42: =W41-D42 -> 1437500 | X42: нет | Y42: =B42-B41 -> 31
A43: e | B43: 2023-12-05 | C43: 50404.6875 | D43: 31250 | E43: 19154.6875 | F43: 0 | K43: 0 | M43: 0 | W43: 1406250 | X43: нет | Y43: 30
A44: e | B44: 2024-01-05 | C44: 50612.89062 | D44: 31250 | E44: 19362.89062 | F44: 0 | K44: 0 | M44: 0 | W44: 1375000 | X44: нет | Y44: 31
A45: e | B45: 2024-02-05 | C45: 50182.60417 | D45: 31250 | E45: 18932.60417 | F45: 0 | K45: 0 | M45: 0 | W45: 1343750 | X45: нет | Y45: 31
A46: e | B46: 2024-03-05 | C46: 48558.61979 | D46: 31250 | E46: 17308.61979 | F46: 0 | K46: 0 | M46: 0 | W46: 1312500 | X46: нет | Y46: 29
A47: e | B47: 2024-04-05 | C47: 49322.03125 | D47: 31250 | E47: 18072.03125 | F47: 0 | K47: 0 | M47: 0 | W47: 1281250 | X47: нет | Y47: 31
A48: e | B48: 2024-05-05 | C48: 48322.65625 | D48: 31250 | E48: 17072.65625 | F48: 0 | K48: 0 | M48: 0 | W48: 1250000 | X48: нет | Y48: 30
A49: e | B49: 2024-06-05 | C49: 48461.45833 | D49: 31250 | E49: 17211.45833 | F49: 0 | K49: 0 | M49: 0 | W49: 1218750 | X49: нет | Y49: 31
A50: e | B50: 2024-07-05 | C50: 47489.84375 | D50: 31250 | E50: 16239.84375 | F50: 0 | K50: 0 | M50: 0 | W50: 1187500 | X50: нет | Y50: 30
A51: e | B51: 2024-08-05 | C51: 47600.88542 | D51: 31250 | E51: 16350.88542 | F51: 0 | K51: 0 | M51: 0 | W51: 1156250 | X51: нет | Y51: 31
A52: e | B52: 2024-09-05 | C52: 236930.599 | D52: 31250 | E52: 15920.59896 | F52: 0 | K52: 0 | M52: 189760 | W52: 1125000 | X52: страховка | Y52: 31
A53: e | B53: 2024-10-05 | C53: 46240.625 | D53: 31250 | E53: 14990.625 | F53: 0 | K53: 0 | M53: 0 | W53: 1093750 | X53: нет | Y53: 30
A54: e | B54: 2024-11-05 | C54: 46310.02604 | D54: 31250 | E54: 15060.02604 | F54: 0 | K54: 0 | M54: 0 | W54: 1062500 | X54: нет | Y54: 31
A55: e | B55: 2024-12-05 | C55: 45407.8125 | D55: 31250 | E55: 14157.8125 | F55: 0 | K55: 0 | M55: 0 | W55: 1031250 | X55: нет | Y55: 30
A56: e | B56: 2025-01-05 | C56: 45449.45312 | D56: 31250 | E56: 14199.45312 | F56: 0 | K56: 0 | M56: 0 | W56: 1000000 | X56: нет | Y56: 31
A57: e | B57: 2025-02-05 | C57: 45019.16667 | D57: 31250 | E57: 13769.16667 | F57: 0 | K57: 0 | M57: 0 | W57: 968750 | X57: нет | Y57: 31
A58: e | B58: 2025-03-05 | C58: 43298.02083 | D58: 31250 | E58: 12048.02083 | F58: 0 | K58: 0 | M58: 0 | W58: 937500 | X58: нет | Y58: 28
A59: e | B59: 2025-04-05 | C59: 44158.59375 | D59: 31250 | E59: 12908.59375 | F59: 0 | K59: 0 | M59: 0 | W59: 906250 | X59: нет | Y59: 31
A60: e | B60: 2025-05-05 | C60: 43325.78125 | D60: 31250 | E60: 12075.78125 | F60: 0 | K60: 0 | M60: 0 | W60: 875000 | X60: нет | Y60: 30
A61: e | B61: 2025-06-05 | C61: 43298.02083 | D61: 31250 | E61: 12048.02083 | F61: 0 | K61: 0 | M61: 0 | W61: 843750 | X61: нет | Y61: 31
A62: e | B62: 2025-07-05 | C62: 42492.96875 | D62: 31250 | E62: 11242.96875 | F62: 0 | K62: 0 | M62: 0 | W62: 812500 | X62: нет | Y62: 30
A63: e | B63: 2025-08-05 | C63: 42437.44792 | D63: 31250 | E63: 11187.44792 | F63: 0 | K63: 0 | M63: 0 | W63: 781250 | X63: нет | Y63: 31
A64: e | B64: 2025-09-05 | C64: 231767.1615 | D64: 31250 | E64: 10757.16146 | F64: 0 | K64: 0 | M64: 189760 | W64: 750000 | X64: страховка | Y64: 31
A65: e | B65: 2025-10-05 | C65: 41243.75 | D65: 31250 | E65: 9993.75 | F65: 0 | K65: 0 | M65: 0 | W65: 718750 | X65: нет | Y65: 30
A66: e | B66: 2025-11-05 | C66: 41146.58854 | D66: 31250 | E66: 9896.588542 | F66: 0 | K66: 0 | M66: 0 | W66: 687500 | X66: нет | Y66: 31
A67: e | B67: 2025-12-05 | C67: 40410.9375 | D67: 31250 | E67: 9160.9375 | F67: 0 | K67: 0 | M67: 0 | W67: 656250 | X67: нет | Y67: 30
A68: e | B68: 2026-01-05 | C68: 40286.01562 | D68: 31250 | E68: 9036.015625 | F68: 0 | K68: 0 | M68: 0 | W68: 625000 | X68: нет | Y68: 31
A69: e | B69: 2026-02-05 | C69: 39855.72917 | D69: 31250 | E69: 8605.729167 | F69: 0 | K69: 0 | M69: 0 | W69: 593750 | X69: нет | Y69: 31
A70: e | B70: 2026-03-05 | C70: 38634.27083 | D70: 31250 | E70: 7384.270833 | F70: 0 | K70: 0 | M70: 0 | W70: 562500 | X70: нет | Y70: 28
A71: e | B71: 2026-04-05 | C71: 38995.15625 | D71: 31250 | E71: 7745.15625 | F71: 0 | K71: 0 | M71: 0 | W71: 531250 | X71: нет | Y71: 31
A72: e | B72: 2026-05-05 | C72: 38328.90625 | D72: 31250 | E72: 7078.90625 | F72: 0 | K72: 0 | M72: 0 | W72: 500000 | X72: нет | Y72: 30
A73: e | B73: 2026-06-05 | C73: 38134.58333 | D73: 31250 | E73: 6884.583333 | F73: 0 | K73: 0 | M73: 0 | W73: 468750 | X73: нет | Y73: 31
A74: e | B74: 2026-07-05 | C74: 37496.09375 | D74: 31250 | E74: 6246.09375 | F74: 0 | K74: 0 | M74: 0 | W74: 437500 | X74: нет | Y74: 30
A75: e | B75: 2026-08-05 | C75: 37274.01042 | D75: 31250 | E75: 6024.010417 | F75: 0 | K75: 0 | M75: 0 | W75: 406250 | X75: нет | Y75: 31
A76: e | B76: 2026-09-05 | C76: 226603.724 | D76: 31250 | E76: 5593.723958 | F76: 0 | K76: 0 | M76: 189760 | W76: 375000 | X76: страховка | Y76: 31
A77: e | B77: 2026-10-05 | C77: 36246.875 | D77: 31250 | E77: 4996.875 | F77: 0 | K77: 0 | M77: 0 | W77: 343750 | X77: нет | Y77: 30
A78: e | B78: 2026-11-05 | C78: 35983.15104 | D78: 31250 | E78: 4733.151042 | F78: 0 | K78: 0 | M78: 0 | W78: 312500 | X78: нет | Y78: 31
A79: e | B79: 2026-12-05 | C79: 35414.0625 | D79: 31250 | E79: 4164.0625 | F79: 0 | K79: 0 | M79: 0 | W79: 281250 | X79: нет | Y79: 30
A80: e | B80: 2027-01-05 | C80: 35122.57812 | D80: 31250 | E80: 3872.578125 | F80: 0 | K80: 0 | M80: 0 | W80: 250000 | X80: нет | Y80: 31
A81: e | B81: 2027-02-05 | C81: 34692.29167 | D81: 31250 | E81: 3442.291667 | F81: 0 | K81: 0 | M81: 0 | W81: 218750 | X81: нет | Y81: 31
A82: e | B82: 2027-03-05 | C82: 33970.52083 | D82: 31250 | E82: 2720.520833 | F82: 0 | K82: 0 | M82: 0 | W82: 187500 | X82: нет | Y82: 28
A83: e | B83: 2027-04-05 | C83: 33831.71875 | D83: 31250 | E83: 2581.71875 | F83: 0 | K83: 0 | M83: 0 | W83: 156250 | X83: нет | Y83: 31
A84: e | B84: 2027-05-05 | C84: 33332.03125 | D84: 31250 | E84: 2082.03125 | F84: 0 | K84: 0 | M84: 0 | W84: 125000 | X84: нет | Y84: 30
A85: e | B85: 2027-06-05 | C85: 32971.14583 | D85: 31250 | E85: 1721.145833 | F85: 0 | K85: 0 | M85: 0 | W85: 93750 | X85: нет | Y85: 31
A86: e | B86: 2027-07-05 | C86: 32499.21875 | D86: 31250 | E86: 1249.21875 | F86: 0 | K86: 0 | M86: 0 | W86: 62500 | X86: нет | Y86: 30
A87: e | B87: 2027-08-05 | C87: 32110.57292 | D87: 31250 | E87: 860.5729167 | F87: 0 | K87: 0 | M87: 0 | W87: 31250 | X87: нет | Y87: 31
A88: e | B88: 2027-09-05 | C88: 31680.28646 | D88: 31250 | E88: 430.2864583 | F88: 0 | W88: 0 | Y88: 31
B89: Усього | C89: 2597135.113 | D89: 1500000 | E89: 527855.1128 | F89: 0 | G89: 0 | H89: 0 | I89: 37500 | J89: 0 | K89: 0 | L89: 0 | M89: 759040 | N89: 0 | O89: 0 | P89: 0 | Q89: 0 | R89: 0 | S89: 0 | T89: 0 | U89: =XIRR(C40:C88,B40:B88) -> 0.5212959111 | V89: 1324395.113
B91: Загальні витрати за кредитом( проценти за користування кредитом, комісії та інші обовязкові платежі за супровідні послуги кредитодавця, кредитного посередника (за наявності) та третіх осіб, повязані з отриманням, обслуговуванням та поверненням кредиту), грн з них: | J91: =V89 -> 1324395.113
B92: - Платежі за супровідні послуги кредитодавця, повязані з отриманням, обслуговуванням та поверненням кредиту), грн | J92: =E89+F89+G89+I89+J89 -> 565355.1128
B93: - Платежі за супровідні послуги третіх осіб, повязані з отриманням, обслуговуванням та поверненням кредиту), грн | J93: =K89+L89+M89+N89+O89+P89+R89+T89 -> 759040
B94: Орієнтовна загальна вартість кредиту для споживача за весь строк користування кредитом ( у т.ч. тіло кредиту, відсотки, комісії та інші платежі), грн. | J94: =J91+D9 -> 2824395.113
B95: Орієнтовна реальна річна процентна ставка, % річних | J95: =U89 -> 0.5212959111
B96: Застереження: Розрахунок загальної вартості Кредиту і реальної процентної ставки носить інформативний характер для Позичальника і визначено станом на дату укладання Кредитного договору. При здійсненні розрахунку загальної вартості Кредиту і реальної процентної ставки Кредитор враховував вартість супутніх послуг третіх осіб, послуги кредитного посередник ( за наявності). В розрахунок загальної вартості Кредиту і реальної процентної ставки не включались умовні платежі Позичальника по Договору (пені, штрафи, які встановлюються згідно з Договором).
B97: Наведені обчислення реальної річної процентної ставки та орієнтовної загальної вартості кредиту для споживача є репрезентативними та базуються на обраних споживачем умовах кредитування, викладених вище, і на припущенні, що договір про споживчий кредит залишатиметься дійсним протягом погодженого строку, а кредитодавець і споживач виконають свої обов’язки на умовах та у строки, визначені в договорі.Реальна річна процентна ставка обчислена на основі припущення, що процентна ставка та інші платежі за послуги кредитодавця залишатимуться незмінними та застосовуватимуться протягом строку дії договору про споживчий кредит. Застереження: використання інших способів надання кредиту та/або зміна інших вищезазначених умов кредитування можуть мати наслідком застосування іншої реальної річної процентної ставки та орієнтовної загальної вартості кредиту для споживача. Орієнтовна реальна річна процентна ставка обчислена з використанням фінансової функції ЧИСТВНДОХ програмного продукту Microsoft Excel.
B98: Позичальник не сплачує Кредитору комісійних винагород за розрахунково-касове обслуговування, що пов‘язані з погашенням Кредиту та процентів за ним Позичальником у готівковій чи безготівковій формі через установи Кредитора. У випадку погашення Позичальником Кредиту та процентів за ним не через установи Кредитора Позичальник буде сплачувати послуги інших банків згідно з тарифами, які діятимуть в таких банках на момент здійснення розрахунково-касового обслуговування Позичальника.

Sheet ануітет
D4: КАЛЬКУЛЯТОР
D5: Обрані Споживачем умови кредитування
B7: Кредит видається на:
B8: Дата надання кредиту | D8: =TODAY() -> 2023-09-05 | L8: Заповнюється Клієнтом
B9: Сума кредиту,грн.: | D9: 420000 | E9: гривень
B10: Забезпечення | D10: 600000 | E10: гривень
B11: Строк користування кредитом (в місяцях): | D11: 12
B12: Погашення основної суми кредиту: щомісяця
B13: Погашення процентів: щомісяця
A14: =ROUND(D9/D11,2) -> 35000 | B14: Номінальна процентна ставка: | D14: =VLOOKUP(D15,'Номінальна %ставка'!$A$2:$F$6,MATCH(D11,'Номінальна %ставка'!$A$2:$F$2,0),0) -> 0.0949 | E14: річних | F14: =D14 -> 0.0949 | I14: =F14/12 -> 0.007908333333
B15: Авансовий внесок | D15: 0.5 | F15: =D10*D15 -> 300000 | G15: гривень
B16: Супутні витрати позичальника:
A17: =DATE(YEAR(B40),MONTH(B40)+1,DAY(B40)) -> 2023-10-05 | B17: комісія за надання кредиту (разова): | D17: 0.025 | E17: від основної суми кредиту. Всього: | G17: =D17*D9 -> 10500 | I17: гривень
B18: обслуговування кредитної заборгованості: | D18: 0 | E18: на місяць від основної суми кредиту: | G18: =D18*D9 -> 0 | I18: гривень
B19: розрахунково-касове обслуговування: | G19: 0 | I19: гривень
B20: страхування НВ: | D20: 0 | E20: на рік від основної суми кредиту: | G20: =D20*D9 -> 0 | I20: гривень
B21: страхування КАСКО: | D21: 0.0679 | E21: на рік від залогової вартості: | G21: =D10*D21 -> 40740 | I21: гривень
B22: послуги нотаріуса: | G22: 0 | I22: гривень
B23: надання витягів/внесення запису(ів) до Державного реєстру обтяжень рухомого майна | E23: фіксована сума (одноразово) | G23: 0 | I23: гривень
B24: інші послуги третіх осіб | G24: 0 | I24: гривень
B25: інші послуги банку | G25: 0 | I25: гривень
B26: комісійний збір кредитного посередника | D26: 0 | E26: від суми кредиту (одноразово) | G26: =D9*D26 -> 0 | I26: гривень
B27: оцінка майна: | E27: фіксована сума (одноразово) | G27: 0 | I27: гривень
B28: інша плата за послуги кредитного посередника | G28: 0 | I28: гривень
B29: ВСЬОГО | G29: =SUM(G17:G28) -> 51240 | I29: гривень
F31: =PMT(F14/12,E11,-D9) ->  | G31: =IPMT(F14/12,1,24,-D9) -> 3321.5
D32: Розрахунок загальної вартості споживчого кредиту та реальної процентної ставки
B34: Дата видачі кредиту/дата платежу | C34: Чиста сума кредиту/сума платежу за розрахунковий період, грн. | D34: Види платежів за кредитом | U34: Реальна процентна ставка, % | V34: Абсолютне значення подорожчання кредиту, грн.
D35: сума кредиту за договором | E35: проценти за користування кредитом | F35: платежі за супровідні послуги
F36: банку | K36: третіх осіб | R36: кредитного посередника(за наявності)
F37: обслуговування кредитної заборгованості | G37: РКО | I37: комісія за надання кредиту | J37: інші послуги банку | K37: страхуванням НВ | L37: послугами нотаріусів | M37: страхування КАСКО: | N37: оцінка майна | O37: надання витягів/внесення запису(ів) до Державного реєстру обтяжень рухомого майна | P37: інші послуги третіх осіб | R37: комісійний збір кредитного посередника | T37: інша плата за послуги кредитного посередника
B38: 1 | C38: 2 | D38: 3 | E38: 4 | F38: 5 | G38: 6 | I38: 7 | J38: 8 | K38: 9 | L38: 10 | M38: 11 | N38: 12 | O38: 13 | P38: 14 | R38: 15 | T38: 16 | U38: 17 | V38: 18
W39: остаток | Z39: ан платеж
A40: e | B40: =D8 -> 2023-09-05 | C40: =-(D40-SUM(F40:T40)) -> -368760 | D40: =D9 -> 420000 | E40: х | F40: =$G$18 -> 0 | G40: =G19 -> 0 | I40: =G17 -> 10500 | J40: =G25 -> 0 | K40: =IF(X40="страховка",$G$20,0) -> 0 | L40: =G22 -> 0 | M40: =IF(X40="страховка",$G$21,0) -> 40740 | N40: =G27 -> 0 | O40: =G23 -> 0 | P40: =G24 -> 0 | R40: =G26 -> 0 | T40: =G28 -> 0 | U40: х | V40: х | W40: 420000 | X40: =IF(MONTH($B$40)-MONTH(B40)=0,"страховка","нет") -> страховка | AB40: =(D9*D14/12)/(1-(1/(1+D14/12)^D11)) -> 36825.12445
A41: e | B41: =DATE(YEAR(B40),MONTH(B40)+1,DAY(B40)) -> 2023-10-05 | C41: =SUM(D41:V41) -> 36825.12445 | D41: =Z41-E41 -> 33503.62445 | E41: =W40*$D$14/12 -> 3321.5 | F41: =$G$18 -> 0 | K41: =IF(X41="страховка",$G$20,0) -> 0 | M41: =IF(X41="страховка",$G$21,0) -> 0 | W41: =W40-D41 -> 386496.3756 | X41: =IF(MONTH($B$40)-MONTH(B41)=0,"страховка","нет") -> нет | Y41: =B41-B40 -> 30 | Z41: =PMT($D$14/12,$D$11,-$D$9) -> 36825.12445
A42: e | B42: =DATE(YEAR(B41),MONTH(B41)+1,DAY(B41)) -> 2023-11-05 | C42: =SUM(D42:V42) -> 36825.12445 | D42: =Z42-E42 -> 33768.58228 | E42: =W41*$D$14/12 -> 3056.54217 | F42: 0 | K42: 0 | M42: 0 | W42: =W41-D42 -> 352727.7933 | X42: нет | Y42: =B42-B41 -> 31 | Z42: =PMT($D$14/12,$D$11,-$D$9) -> 36825.12445
A43: e | B43: 2023-12-05 | C43: 36825.12445 | D43: 34035.63548 | E43: 2789.488965 | F43: 0 | K43: 0 | M43: 0 | W43: 318692.1578 | X43: нет | Y43: 30 | Z43: 36825.12445
A44: e | B44: 2024-01-05 | C44: 36825.12445 | D44: 34304.80063 | E44: 2520.323814 | F44: 0 | K44: 0 | M44: 0 | W44: 284387.3572 | X44: нет | Y44: 31 | Z44: 36825.12445
A45: e | B45: 2024-02-05 | C45: 36825.12445 | D45: 34576.09443 | E45: 2249.030016 | F45: 0 | K45: 0 | M45: 0 | W45: 249811.2627 | X45: нет | Y45: 31 | Z45: 36825.12445
A46: e | B46: 2024-03-05 | C46: 36825.12445 | D46: 34849.53371 | E46: 1975.590736 | F46: 0 | K46: 0 | M46: 0 | W46: 214961.729 | X46: нет | Y46: 29 | Z46: 36825.12445
A47: e | B47: 2024-04-05 | C47: 36825.12445 | D47: 35125.13544 | E47: 1699.989007 | F47: 0 | K47: 0 | M47: 0 | W47: 179836.5936 | X47: нет | Y47: 31 | Z47: 36825.12445
A48: e | B48: 2024-05-05 | C48: 36825.12445 | D48: 35402.91672 | E48: 1422.207727 | F48: 0 | K48: 0 | M48: 0 | W48: 144433.6768 | X48: нет | Y48: 30 | Z48: 36825.12445
A49: e | B49: 2024-06-05 | C49: 36825.12445 | D49: 35682.89479 | E49: 1142.229661 | F49: 0 | K49: 0 | M49: 0 | W49: 108750.7821 | X49: нет | Y49: 31 | Z49: 36825.12445
A50: e | B50: 2024-07-05 | C50: 36825.12445 | D50: 35965.08701 | E50: 860.0374347 | F50: 0 | K50: 0 | M50: 0 | W50: 72785.69504 | X50: нет | Y50: 30 | Z50: 36825.12445
A51: e | B51: 2024-08-05 | C51: 36825.12445 | D51: 36249.51091 | E51: 575.6135383 | F51: 0 | K51: 0 | M51: 0 | W51: 36536.18413 | X51: нет | Y51: 31 | Z51: 36825.12445
A52: e | B52: 2024-09-05 | C52: 77565.12445 | D52: 36536.18413 | E52: 288.9403228 | F52: 0 | K52: 0 | M52: 40740 | W52: 0 | X52: страховка | Y52: 31 | Z52: 36825.12445
A53: e | B53: 2024-10-05 | C53: 36825.12445 | D53: 36825.12445 | E53: 0 | F53: 0 | K53: 0 | M53: 0 | W53: -36825.12445 | X53: нет | Y53: 30 | Z53: 36825.12445
A54: e | B54: 2024-11-05 | C54: 36825.12445 | D54: 37116.34981 | E54: -291.2253592 | F54: 0 | K54: 0 | M54: 0 | W54: -73941.47426 | X54: нет | Y54: 31 | Z54: 36825.12445
A55: e | B55: 2024-12-05 | C55: 36825.12445 | D55: 37409.87827 | E55: -584.7538256 | F55: 0 | K55: 0 | M55: 0 | W55: -111351.3525 | X55: нет | Y55: 30 | Z55: 36825.12445
A56: e | B56: 2025-01-05 | C56: 36825.12445 | D56: 37705.72806 | E56: -880.6036129 | F56: 0 | K56: 0 | M56: 0 | W56: -149057.0806 | X56: нет | Y56: 31 | Z56: 36825.12445
A57: e | B57: 2025-02-05 | C57: 36825.12445 | D57: 38003.91753 | E57: -1178.793079 | F57: 0 | K57: 0 | M57: 0 | W57: -187060.9981 | X57: нет | Y57: 31 | Z57: 36825.12445
A58: e | B58: 2025-03-05 | C58: 36825.12445 | D58: 38304.46518 | E58: -1479.340727 | F58: 0 | K58: 0 | M58: 0 | W58: -225365.4633 | X58: нет | Y58: 28 | Z58: 36825.12445
A59: e | B59: 2025-04-05 | C59: 36825.12445 | D59: 38607.38966 | E59: -1782.265206 | F59: 0 | K59: 0 | M59: 0 | W59: -263972.853 | X59: нет | Y59: 31 | Z59: 36825.12445
A60: e | B60: 2025-05-05 | C60: 36825.12445 | D60: 38912.70976 | E60: -2087.585312 | F60: 0 | K60: 0 | M60: 0 | W60: -302885.5627 | X60: нет | Y60: 30 | Z60: 36825.12445
A61: e | B61: 2025-06-05 | C61: 36825.12445 | D61: 39220.44444 | E61: -2395.319992 | F61: 0 | K61: 0 | M61: 0 | W61: -342106.0072 | X61: нет | Y61: 31 | Z61: 36825.12445
A62: e | B62: 2025-07-05 | C62: 36825.12445 | D62: 39530.61279 | E62: -2705.48834 | F62: 0 | K62: 0 | M62: 0 | W62: -381636.6199 | X62: нет | Y62: 30 | Z62: 36825.12445
A63: e | B63: 2025-08-05 | C63: 36825.12445 | D63: 39843.23405 | E63: -3018.109603 | F63: 0 | K63: 0 | M63: 0 | W63: -421479.854 | X63: нет | Y63: 31 | Z63: 36825.12445
A64: e | B64: 2025-09-05 | C64: 77565.12445 | D64: 40158.32763 | E64: -3333.203179 | F64: 0 | K64: 0 | M64: 40740 | W64: -461638.1816 | X64: страховка | Y64: 31 | Z64: 36825.12445
A65: e | B65: 2025-10-05 | C65: 36825.12445 | D65: 40475.91307 | E65: -3650.78862 | F65: 0 | K65: 0 | M65: 0 | W65: -502114.0947 | X65: нет | Y65: 30 | Z65: 36825.12445
A66: e | B66: 2025-11-05 | C66: 36825.12445 | D66: 40796.01008 | E66: -3970.885632 | F66: 0 | K66: 0 | M66: 0 | W66: -542910.1048 | X66: нет | Y66: 31 | Z66: 36825.12445
A67: e | B67: 2025-12-05 | C67: 36825.12445 | D67: 41118.63853 | E67: -4293.514079 | F67: 0 | K67: 0 | M67: 0 | W67: -584028.7433 | X67: нет | Y67: 30 | Z67: 36825.12445
A68: e | B68: 2026-01-05 | C68: 36825.12445 | D68: 41443.81843 | E68: -4618.693978 | F68: 0 | K68: 0 | M68: 0 | W68: -625472.5617 | X68: нет | Y68: 31 | Z68: 36825.12445
A69: e | B69: 2026-02-05 | C69: 36825.12445 | D69: 41771.56996 | E69: -4946.445509 | F69: 0 | K69: 0 | M69: 0 | W69: -667244.1317 | X69: нет | Y69: 31 | Z69: 36825.12445
A70: e | B70: 2026-03-05 | C70: 36825.12445 | D70: 42101.91346 | E70: -5276.789008 | F70: 0 | K70: 0 | M70: 0 | W70: -709346.0451 | X70: нет | Y70: 28 | Z70: 36825.12445
A71: e | B71: 2026-04-05 | C71: 36825.12445 | D71: 42434.86942 | E71: -5609.744974 | F71: 0 | K71: 0 | M71: 0 | W71: -751780.9146 | X71: нет | Y71: 31 | Z71: 36825.12445
A72: e | B72: 2026-05-05 | C72: 36825.12445 | D72: 42770.45852 | E72: -5945.334066 | F72: 0 | K72: 0 | M72: 0 | W72: -794551.3731 | X72: нет | Y72: 30 | Z72: 36825.12445
A73: e | B73: 2026-06-05 | C73: 36825.12445 | D73: 43108.70156 | E73: -6283.577109 | F73: 0 | K73: 0 | M73: 0 | W73: -837660.0746 | X73: нет | Y73: 31 | Z73: 36825.12445
A74: e | B74: 2026-07-05 | C74: 36825.12445 | D74: 43449.61954 | E74: -6624.49509 | F74: 0 | K74: 0 | M74: 0 | W74: -881109.6942 | X74: нет | Y74: 30 | Z74: 36825.12445
A75: e | B75: 2026-08-05 | C75: 36825.12445 | D75: 43793.23361 | E75: -6968.109165 | F75: 0 | K75: 0 | M75: 0 | W75: -924902.9278 | X75: нет | Y75: 31 | Z75: 36825.12445
A76: e | B76: 2026-09-05 | C76: 36825.12445 | D76: 44139.5651 | E76: -7314.440654 | F76: 0 | W76: -969042.4929 | Y76: 31 | Z76: 36825.12445
B77: Усього | C77: 628028.3741 | D77: 420000 | E77: 126548.3741 | F77: 0 | G77: 0 | H77: 0 | I77: 10500 | J77: 0 | K77: 0 | L77: 0 | M77: 122220 | N77: 0 | O77: 0 | P77: 0 | Q77: 0 | R77: 0 | S77: 0 | T77: 0 | U77: =XIRR(C40:C76,B40:B76) -> 2.183241963 | V77: 259268.3741
B79: Загальні витрати за кредитом( проценти за користування кредитом, комісії та інші обовязкові платежі за супровідні послуги кредитодавця, кредитного посередника (за наявності) та третіх осіб, повязані з отриманням, обслуговуванням та поверненням кредиту), грн з них: | J79: =V77 -> 259268.3741
B80: - Платежі за супровідні послуги кредитодавця, повязані з отриманням, обслуговуванням та поверненням кредиту), грн | J80: =E77+F77+G77+I77+J77 -> 137048.3741
B81: - Платежі за супровідні послуги третіх осіб, повязані з отриманням, обслуговуванням та поверненням кредиту), грн | J81: =K77+L77+M77+N77+O77+P77+R77+T77 -> 122220
B82: Орієнтовна загальна вартість кредиту для споживача за весь строк користування кредитом ( у т.ч. тіло кредиту, відсотки, комісії та інші платежі), грн. | J82: =J79+D9 -> 679268.3741
B83: Орієнтовна реальна річна процентна ставка, % річних | J83: =U77 -> 2.183241963
B84: Застереження: Розрахунок загальної вартості Кредиту і реальної процентної ставки носить інформативний характер для Позичальника і визначено станом на дату укладання Кредитного договору. При здійсненні розрахунку загальної вартості Кредиту і реальної процентної ставки Кредитор враховував вартість супутніх послуг третіх осіб, послуги кредитного посередник ( за наявності). В розрахунок загальної вартості Кредиту і реальної процентної ставки не включались умовні платежі Позичальника по Договору (пені, штрафи, які встановлюються згідно з Договором).
B85: Наведені обчислення реальної річної процентної ставки та орієнтовної загальної вартості кредиту для споживача є репрезентативними та базуються на обраних споживачем умовах кредитування, викладених вище, і на припущенні, що договір про споживчий кредит залишатиметься дійсним протягом погодженого строку, а кредитодавець і споживач виконають свої обов’язки на умовах та у строки, визначені в договорі.Реальна річна процентна ставка обчислена на основі припущення, що процентна ставка та інші платежі за послуги кредитодавця залишатимуться незмінними та застосовуватимуться протягом строку дії договору про споживчий кредит. Застереження: використання інших способів надання кредиту та/або зміна інших вищезазначених умов кредитування можуть мати наслідком застосування іншої реальної річної процентної ставки та орієнтовної загальної вартості кредиту для споживача. Орієнтовна реальна річна процентна ставка обчислена з використанням фінансової функції ЧИСТВНДОХ програмного продукту Microsoft Excel.
B86: Позичальник не сплачує Кредитору комісійних винагород за розрахунково-касове обслуговування, що пов‘язані з погашенням Кредиту та процентів за ним Позичальником у готівковій чи безготівковій формі через установи Кредитора. У випадку погашення Позичальником Кредиту та процентів за ним не через установи Кредитора Позичальник буде сплачувати послуги інших банків згідно з тарифами, які діятимуть в таких банках на момент здійснення розрахунково-касового обслуговування Позичальника.

Sheet Номінальна %ставка (hidden)
B1: Строк кредиту, міс.
A2: Авансовий внесок | B2: 12 | C2: 24 | D2: 36 | E2: 48 | F2: 60
A3: 0.2 | B3: 0.1399 | C3: 0.1599 | D3: 0.1699 | E3: 0.1799 | F3: 0.1899
A4: 0.3 | B4: 0.1299 | C4: 0.1499 | D4: 0.1599 | E4: 0.1699 | F4: 0.1799
A5: 0.4 | B5: 0.1199 | C5: 0.1399 | D5: 0.1499 | E5: 0.1599 | F5: 0.1699
A6: 0.5 | B6: 0.0949 | C6: 0.1199 | D6: 0.1399 | E6: 0.1499 | F6: 0.1599
